bitfinex/quotes_SOLUSD_20230116
["timestamp","ask_amount","ask_price","bid_price","bid_amount"]
[1673881972281,4.09253,22.594,22.547,20.0]
[1673881972604,4.09253,22.594,22.547,41.46196354]
[1673881972818,4.09253,22.594,22.549,7.54609817]
[1673881973032,4.09253,22.594,22.55,37.0]
[1673881973342,4.09253,22.594,22.551,37.0]
[1673881973533,4.09253,22.594,22.551,41.46196354]
[1673881973745,4.09253,22.594,22.552,21.46196354]
[1673881973946,4.09253,22.594,22.553,20.0]
[1673881974156,4.09253,22.594,22.554,20.0]
[1673881974395,4.09253,22.594,22.554,41.46196354]
[1673881974586,4.09253,22.594,22.555,21.46196354]
[1673881974793,4.09253,22.594,22.557,20.0]
[1673881975528,4.09253,22.594,22.558,21.46196354]
[1673881975954,4.09253,22.594,22.559,20.0]
[1673881976388,4.09253,22.594,22.56,41.46196354]
[1673881976588,4.09253,22.594,22.561,21.38789303]
[1673881976919,20.0,22.615,22.563,20.0]
[1673881977115,37.28253,22.614,22.563,20.0]
[1673881977325,4.09253,22.613,22.564,37.0]
[1673881977639,4.09253,22.613,22.565,21.46196354]
[1673881977853,4.09253,22.613,22.567,20.0]
[1673881978049,4.09253,22.613,22.569,7.69798482]
[1673881978261,4.09253,22.613,22.57,20.0]
[1673881978487,4.09253,22.613,22.571,17.0]
[1673881978888,46.62871634,22.613,22.572,41.46196354]
[1673881979105,25.1667528,22.613,22.573,17.0]
[1673881979415,20.0,22.612,22.574,20.0]
[1673881979628,4.09253,22.611,22.575,17.0]
[1673881979843,4.09253,22.611,22.576,20.0]
[1673881980062,20.0,22.626,22.577,17.0]
[1673881980392,4.09253,22.62,22.577,38.46196354]
[1673881980572,33.16,22.639,22.578,21.46196354]
[1673881980784,20.0,22.637,22.58,20.0]
[1673881980990,4.09253,22.636,22.581,4.14174]
[1673881981224,58.71449354,22.636,22.581,25.60370354]
[1673881981417,58.71449354,22.636,22.582,21.46196354]
[1673881981624,21.46196354,22.635,22.582,21.46196354]
[1673881981834,20.0,22.633,22.583,20.0]
[1673881982261,37.26253,22.632,22.584,21.46196354]
[1673881982465,4.09253,22.63,22.584,21.46196354]
[1673881982890,33.17,22.629,22.585,37.0]
[1673881983102,4.09253,22.628,22.585,37.0]
[1673881983324,4.09253,22.628,22.586,21.46196354]
[1673881983520,21.46196354,22.627,22.587,17.0]
[1673881983733,20.0,22.625,22.586,21.46196354]
[1673881983942,4.09253,22.624,22.588,21.46196354]
[1673881985091,33.18,22.623,22.583,109.6772]
[1673881985305,4.09253,22.622,22.583,109.6772]
[1673881985515,25.55449354,22.622,22.577,21.46196354]
[1673881985725,20.0,22.62,22.583,21.46196354]
[1673881985946,4.09253,22.619,22.583,21.46196354]
[1673881986789,4.09253,22.619,22.584,20.0]
[1673881986997,4.09253,22.619,22.584,59.06553176]
[1673881987217,4.09253,22.619,22.585,38.46196354]
[1673881987456,4.09253,22.619,22.585,77.5274953]
[1673881987612,4.09253,22.619,22.587,20.0]
[1673881987822,4.09253,22.619,22.588,20.0]
[1673881988153,4.09253,22.619,22.588,106.07626474]
[1673881988352,4.09253,22.619,22.589,60.5274953]
[1673881988560,33.13,22.654,22.59,166.1]
[1673881988778,4.09253,22.652,22.591,20.0]
[1673881988978,4.09253,22.652,22.592,149.1]
[1673881989207,4.09253,22.652,22.593,17.0]
[1673881989525,4.09253,22.652,22.594,149.1]
[1673881989735,4.09253,22.652,22.596,20.0]
[1673881989946,4.09253,22.652,22.598,129.1]
[1673881990364,4.09253,22.652,22.6,129.1]
[1673881990569,4.09253,22.652,22.602,129.1]
[1673881990780,4.09253,22.652,22.604,129.1]
[1673881990992,4.09253,22.652,22.605,20.0]
[1673881991235,4.09253,22.652,22.606,129.1]
[1673881991408,4.09253,22.652,22.608,129.1]
[1673881991613,4.09253,22.652,22.611,20.0]
[1673881991835,4.09253,22.652,22.612,166.1]
[1673881992040,4.09253,22.652,22.612,67.18406631]
[1673881992254,4.09253,22.652,22.613,21.46196354]
[1673881992449,4.09253,22.652,22.615,20.0]
[1673881992660,4.09253,22.652,22.616,20.0]
[1673881992864,4.09253,22.652,22.616,80.5274953]
[1673881993085,4.09253,22.652,22.617,60.5274953]
[1673881993294,4.09253,22.652,22.618,20.0]
[1673881993521,20.0,22.68,22.619,129.1]
[1673881993841,53.08,22.692,22.621,149.1]
[1673881994030,53.08,22.692,22.623,129.1]
[1673881994357,4.09253,22.691,22.625,129.1]
[1673881994556,25.55449354,22.691,22.626,153.2335]
[1673881994767,54.54196354,22.69,22.627,190.23332]
[1673881995009,4.09253,22.689,22.628,4.13314]
[1673881995330,25.55449354,22.689,22.629,146.1]
[1673881995640,20.0,22.687,22.631,20.0]
[1673881995961,21.46196354,22.686,22.632,24.13241]
[1673881996152,54.55196354,22.686,22.633,4.13222]
[1673881996572,58.46196354,22.685,22.633,4.13222]
[1673881997016,33.09,22.684,22.633,4.13222]
[1673881997322,17.0,22.683,22.633,4.13222]
[1673881997532,21.46196354,22.683,22.633,4.13222]
[1673881997748,21.46196354,22.682,22.634,21.46196354]
[1673881997956,54.55196354,22.682,22.635,4.13186]
[1673881998155,21.46196354,22.682,22.635,4.13186]
[1673881998359,54.55196354,22.681,22.636,21.46196354]
[1673881998572,20.0,22.68,22.638,20.0]
[1673881998777,41.46196354,22.68,22.639,4.13113]
[1673881998983,54.56196354,22.679,22.639,47.05505708]
[1673881999193,54.56196354,22.679,22.639,25.59309354]
[1673881999432,21.0742228,22.678,22.639,4.13113]
[1673881999641,20.0,22.676,22.639,4.13113]
[1673882000165,54.56196354,22.675,22.639,4.13113]
[1673882000375,17.0,22.674,22.639,4.13113]
[1673882000571,20.0,22.673,22.639,4.13113]
[1673882000779,17.0,22.672,22.639,4.13113]
[1673882000993,38.0742228,22.672,22.639,4.13113]
[1673882001225,129.1,22.67,22.639,4.13113]
[1673882001538,20.0,22.668,22.639,4.13113]
[1673882001720,20.0,22.667,22.639,4.13113]
[1673882001931,17.0,22.666,22.639,4.13113]
[1673882002141,20.0,22.665,22.639,4.13113]
[1673882002365,17.0,22.664,22.639,4.13113]
[1673882002574,20.0,22.663,22.639,4.13113]
[1673882002786,17.0,22.662,22.639,4.13113]
[1673882003001,21.0742228,22.662,22.639,4.13113]
[1673882003192,33.12,22.661,22.639,4.13113]
[1673882003611,33.12,22.662,22.639,4.13113]
[1673882003827,20.0,22.663,22.639,4.13113]
[1673882004262,53.12,22.663,22.639,4.13113]
[1673882004464,41.46196354,22.663,22.639,4.13113]
[1673882004774,33.12,22.662,22.639,4.13113]
[1673882004978,54.58196354,22.662,22.639,4.13113]
[1673882005302,21.46196354,22.661,22.639,4.13113]
[1673882005504,20.0,22.66,22.639,4.13113]
[1673882005713,17.0,22.659,22.639,4.13113]
[1673882005924,38.46196354,22.659,22.639,4.13113]
[1673882006134,33.13,22.658,22.639,4.13113]
[1673882006356,20.0,22.66,22.64,17.0]
[1673882006662,33.13,22.659,22.64,17.0]
[1673882007077,53.11,22.669,22.64,17.0]
[1673882007288,53.11,22.669,22.641,21.46196354]
[1673882007517,33.11,22.671,22.643,20.0]
[1673882007730,33.1,22.679,22.643,20.0]
[1673882007929,33.1,22.679,22.644,38.46196354]
[1673882008142,20.0,22.678,22.644,38.46196354]
[1673882008341,20.0,22.678,22.645,21.46196354]
[1673882008555,33.1,22.679,22.646,20.0]
[1673882008769,4.09253,22.678,22.647,17.0]
[1673882008975,4.09253,22.678,22.647,59.92392708]
[1673882009182,4.09253,22.678,22.648,21.46196354]
[1673882009393,33.09,22.684,22.649,17.0]
[1673882009609,33.1,22.679,22.649,17.0]
[1673882010043,20.0,22.678,22.649,17.0]
[1673882010465,20.0,22.676,22.649,17.0]
[1673882010864,20.0,22.676,22.648,21.46196354]
[1673882011072,21.46196354,22.676,22.648,21.46196354]
[1673882011286,21.46196354,22.676,22.643,20.0]
[1673882011610,20.0,22.674,22.634,41.46196354]
[1673882011831,20.0,22.674,22.635,24.13186]
[1673882012023,20.0,22.674,22.635,20.0]
[1673882012024,33.11,22.673,22.635,20.0]
[1673882012233,33.11,22.673,22.636,21.46196354]
[1673882012458,20.0,22.671,22.623,20.0]
[1673882012780,41.46196354,22.67,22.624,4.13387]
[1673882012968,159.66389869,22.67,22.624,4.13387]
[1673882013179,234.57197446,22.669,22.624,4.13387]
[1673882013390,17.0,22.668,22.624,4.13387]
[1673882013614,149.1,22.667,22.624,4.13387]
[1673882013830,129.1,22.665,22.624,4.13387]
[1673882014345,129.1,22.663,22.624,4.13387]
[1673882014555,129.1,22.661,22.624,4.13387]
[1673882014777,20.0,22.66,22.624,4.13387]
[1673882014977,146.1,22.659,22.624,4.13387]
[1673882015188,20.0,22.658,22.624,4.13387]
[1673882015399,146.1,22.657,22.624,4.13387]
[1673882015611,20.0,22.656,22.582,20.0]
[1673882015806,129.1,22.651,22.582,20.0]
[1673882016014,20.0,22.65,22.582,20.0]
[1673882016238,129.1,22.649,22.583,21.46196354]
[1673882016435,17.0,22.648,22.585,4.14101]
[1673882016646,149.1,22.647,22.585,4.14101]
[1673882016855,219.11788417,22.647,22.585,4.14101]
[1673882017086,129.1,22.645,22.585,4.14101]
[1673882017402,129.1,22.643,22.585,4.14101]
[1673882017593,129.1,22.641,22.585,4.14101]
[1673882017928,129.1,22.639,22.585,4.14101]
[1673882018327,129.1,22.637,22.585,4.14101]
[1673882018642,98.71592063,22.638,22.585,4.14101]
[1673882018643,129.1,22.635,22.585,4.14101]
[1673882018857,129.1,22.633,22.585,4.14101]
[1673882019068,20.0,22.632,22.585,4.14101]
[1673882019284,146.1,22.631,22.585,4.14101]
[1673882019501,20.0,22.63,22.585,4.14101]
[1673882019692,146.1,22.629,22.585,4.14101]
[1673882019909,20.0,22.628,22.585,4.14101]
[1673882020109,146.1,22.627,22.585,4.14101]
[1673882020319,20.0,22.626,22.558,20.0]
[1673882020557,166.1,22.625,22.559,4.14578]
[1673882020766,20.0,22.624,22.559,4.14578]
[1673882021096,146.1,22.623,22.56,21.46196354]
[1673882021392,20.0,22.621,22.561,4.14541]
[1673882021580,129.1,22.619,22.561,4.14541]
[1673882021790,129.1,22.617,22.562,21.46196354]
[1673882022021,8.88350887,22.616,22.562,21.46196354]
[1673882022232,8.88350887,22.616,22.561,4.14541]
[1673882022233,153.19253,22.615,22.561,4.14541]
[1673882022447,149.1,22.613,22.562,21.46196354]
[1673882022645,5.40787565,22.61,22.548,20.0]
[1673882022963,4.70833191,22.607,22.549,24.60958354]
[1673882023182,4.09253,22.606,22.55,4.14743]
[1673882023366,20.0,22.605,22.551,20.0]
[1673882023577,17.0,22.604,22.552,4.14707]
[1673882023783,20.0,22.603,22.552,25.60903354]
[1673882023998,174.65449354,22.603,22.552,25.60903354]
[1673882024214,54.30253,22.602,22.553,21.46196354]
[1673882024424,40.0,22.601,22.553,21.46196354]
[1673882024651,21.09253,22.6,22.553,21.46196354]
[1673882024866,24.09253,22.599,22.553,21.46196354]
[1673882025069,21.09253,22.598,22.553,21.46196354]
[1673882025276,20.0,22.596,22.555,20.0]
[1673882025496,21.09253,22.595,22.556,17.0]
[1673882025690,4.09253,22.594,22.556,38.46196354]
[1673882025895,4.09253,22.594,22.557,21.46196354]
[1673882026106,33.22,22.593,22.558,17.0]
[1673882026434,20.0,22.591,22.559,21.46196354]
[1673882026761,41.09253,22.59,22.524,43.09]
[1673882026941,4.09253,22.589,22.548,21.46196354]
[1673882027156,4.09253,22.589,22.549,21.46196354]
[1673882027372,53.23,22.588,22.549,21.46196354]
[1673882027576,21.09253,22.587,22.549,21.46196354]
[1673882027781,4.09253,22.586,22.549,21.46196354]
[1673882028213,4.09253,22.586,22.551,20.0]
[1673882028419,20.0,22.585,22.551,20.0]
[1673882028641,20.0,22.583,22.552,21.46196354]
[1673882028838,21.09253,22.582,22.552,21.46196354]
[1673882029044,4.09253,22.581,22.552,21.46196354]
[1673882029259,4.09253,22.581,22.553,20.0]
[1673882029674,4.09253,22.581,22.554,21.46196354]
[1673882029901,4.09253,22.581,22.548,20.0]
[1673882030113,4.09253,22.581,22.549,17.0]
[1673882030114,25.55449354,22.581,22.549,17.0]
[1673882030436,20.0,22.58,22.543,41.46196354]
[1673882030635,4.09253,22.579,22.523,20.0]
[1673882030959,58.4067528,22.579,22.539,21.46196354]
[1673882031172,38.46196354,22.578,22.539,21.46196354]
[1673882031368,20.0,22.577,22.532,20.0]
[1673882031568,4.09253,22.575,22.531,116.7354]
[1673882031990,33.25,22.574,22.523,20.0]
[1673882032221,20.0,22.573,22.523,20.0]
[1673882032554,20.0,22.573,22.522,21.46196354]
[1673882032555,37.0,22.572,22.522,21.46196354]
[1673882032743,120.26788417,22.572,22.522,21.46196354]
[1673882032931,21.46196354,22.571,22.519,116.7354]
[1673882033256,20.0,22.568,22.518,20.0]
[1673882033478,8.35500052,22.566,22.518,37.766639]
[1673882033665,4.09253,22.564,22.518,59.22860254]
[1673882034109,4.09253,22.564,22.518,39.22860254]
[1673882034303,4.09253,22.564,22.518,17.766639]
[1673882034304,115.18866952,22.563,22.518,17.766639]
[1673882034513,3.87079,22.561,22.518,17.766639]
[1673882035029,21.46196354,22.56,22.519,21.46196354]
[1673882035245,20.0,22.557,22.52,20.0]
[1673882035449,4.09253,22.556,22.518,17.766639]
[1673882035672,21.09253,22.556,22.52,0.19354722]
[1673882036093,42.55449354,22.556,22.52,0.19354722]
[1673882036315,20.0,22.555,22.52,0.19354722]
[1673882036524,4.09253,22.554,22.52,0.19354722]
[1673882036837,42.55449354,22.554,22.52,0.19354722]
[1673882037060,75.81618634,22.553,22.52,0.19354722]
[1673882037382,62.55449354,22.552,22.52,0.19354722]
[1673882037573,10.65963194,22.551,22.52,0.19354722]
[1673882037792,21.09253,22.55,22.52,0.19354722]
[1673882038001,24.09253,22.549,22.518,15.46018622]
[1673882038218,20.0,22.547,22.518,15.46018622]
[1673882038432,4.09253,22.546,22.518,15.46018622]
[1673882038642,25.55449354,22.546,22.518,15.46018622]
[1673882039043,7.57064772,22.544,22.518,15.46018622]
[1673882039254,42.53618634,22.545,22.5,9.60325282]
[1673882039255,129.1,22.542,22.5,9.60325282]
[1673882039475,5.97640462,22.541,22.5,9.60325282]
[1673882039793,20.0,22.54,22.5,9.60325282]
[1673882040111,7.77608193,22.539,22.5,9.60325282]
[1673882040299,24.09253,22.538,22.5,9.60325282]
[1673882040511,10.05386341,22.537,22.5,9.60325282]
[1673882040738,6.57705366,22.535,22.5,9.60325282]
[1673882041059,9.68153167,22.534,22.5,9.60325282]
[1673882041271,24.09253,22.533,22.5,9.60325282]
[1673882041471,4.09253,22.532,22.5,9.60325282]
[1673882041683,4.09253,22.532,22.501,31.04811404]
[1673882042094,4.09253,22.532,22.5,9.60325282]
[1673882042725,4.09253,22.532,22.501,38.51452747]
[1673882042934,4.09253,22.532,22.502,17.0]
[1673882043148,4.09253,22.532,22.503,20.0]
[1673882043359,4.09253,22.532,22.504,17.0]
[1673882043574,4.09253,22.532,22.502,17.0]
[1673882043895,4.09253,22.532,22.504,38.96519413]
[1673882044099,4.09253,22.532,22.502,20.0]
[1673882044291,4.09253,22.532,22.503,37.0]
[1673882044505,4.09253,22.532,22.503,17.0]
[1673882044720,21.46196354,22.531,22.502,38.96519413]
[1673882045144,4.09253,22.53,22.5,9.60325282]
[1673882045365,4.09253,22.53,22.503,32.86542737]
[1673882045764,4.09253,22.53,22.5,9.60325282]
[1673882046182,21.46196354,22.529,22.5,9.60325282]
[1673882046421,133.19253,22.528,22.5,9.60325282]
[1673882046606,54.78196354,22.529,22.5,5.282e-05]
[1673882046607,157.43807316,22.527,22.5,5.282e-05]
[1673882046821,7.47955267,22.526,22.498,17.783494]
[1673882047030,149.1,22.525,22.451,1.76438749]
[1673882047234,149.1,22.525,22.459,0.90258803]
[1673882047235,17.783494,22.498,22.459,0.90258803]
[1673882047448,21.40258962,22.524,22.459,0.90258803]
[1673882047449,129.1,22.496,22.459,0.90258803]
[1673882047679,129.1,22.494,22.459,0.40258803]
[1673882047917,4.80727885,22.492,22.459,0.40258803]
[1673882048107,9.07573524,22.491,22.459,0.40258803]
[1673882048309,153.19253,22.49,22.459,0.40258803]
[1673882048523,9.61663419,22.489,22.451,1.76438749]
[1673882048852,0.40258803,22.459,22.451,1.76438749]
[1673882049068,4.09253,22.458,22.451,1.76438749]
[1673882049388,4.09253,22.458,22.402,17.842266]
[1673882049389,1.76438749,22.441,22.411,74.42679685]
[1673882049598,4.09253,22.44,22.429,20.02285831]
[1673882049907,4.09253,22.44,22.402,17.842266]
[1673882049908,42.9321752,22.426,22.403,74.99069864]
[1673882050116,20.59172385,22.421,22.403,74.99069864]
[1673882050313,10.51029627,22.42,22.403,75.99069864]
[1673882050521,11.7934132,22.419,22.403,75.99069864]
[1673882050751,21.82001961,22.4,22.355,98.24692322]
[1673882050961,4.09253,22.398,22.355,98.24692322]
[1673882051364,4.09253,22.398,22.388,20.0]
[1673882051785,4.09253,22.398,22.327,75.03975559]
[1673882051786,21.46196354,22.397,22.327,75.03975559]
[1673882052000,21.46196354,22.397,22.342,91.0330666]
[1673882052202,6.03535367,22.387,22.343,20.0]
[1673882052411,4.09253,22.385,22.343,20.0]
[1673882052942,5.73432102,22.383,22.343,20.0]
[1673882053263,4.08629875,22.381,22.356,20.0]
[1673882053464,4.09253,22.38,22.356,20.0]
[1673882053885,3.87031,22.38,22.356,20.0]
[1673882054103,129.1,22.378,22.356,20.0]
[1673882054312,129.1,22.378,22.342,91.0330666]
[1673882054313,10.79176588,22.377,22.342,91.0330666]
[1673882054527,5.56992372,22.343,22.342,91.0330666]
[1673882054720,9.66245372,22.343,22.342,91.0330666]
[1673882054933,25.55449354,22.343,22.342,0.0030666]
[1673882055251,6.63943807,22.341,22.327,17.901017]
[1673882055471,4.09253,22.34,22.327,17.901017]
[1673882055677,25.55449354,22.34,22.327,17.901017]
[1673882055882,24.32971471,22.339,22.327,1.7e-05]
[1673882056102,4.85948273,22.337,22.327,1.7e-05]
[1673882056313,87.0727,22.289,22.257,5.24195948]
[1673882056517,17.901017,22.327,22.304,30.06921151]
[1673882056731,4.09253,22.326,22.304,29.06921151]
[1673882056951,21.46196354,22.315,22.268,20.0]
[1673882057163,4.09253,22.313,22.276,34.85414735]
[1673882057600,4.09253,22.313,22.268,20.0]
[1673882057601,4.09253,22.313,22.277,21.46196354]
[1673882057778,4.09253,22.313,22.268,20.0]
[1673882057989,20.0,22.336,22.277,21.46196354]
[1673882058199,19.44400001,22.338,22.269,9.51354747]
[1673882058638,20.0,22.314,22.27,12.717618]
[1673882058956,19.44400001,22.338,22.27,25.2749175]
[1673882059136,7.69423919,22.381,22.314,20.0]
[1673882059355,28.84035026,22.351,22.315,20.0]
[1673882059582,28.84035026,22.351,22.315,62.5671669]
[1673882059789,28.84035026,22.351,22.316,65.09567823]
[1673882059988,20.0,22.399,22.317,24.19073]
[1673882060198,4.09253,22.396,22.354,28.84035026]
[1673882060528,20.0,22.399,22.355,24.18361]
[1673882060722,4.09253,22.398,22.355,20.0]
[1673882060927,4.09253,22.398,22.32,27.86039049]
[1673882061150,4.09253,22.398,22.353,35.3935252]
[1673882061353,21.82001961,22.4,22.355,4.89778947]
[1673882061672,21.82001961,22.4,22.357,4.18324]
[1673882061887,21.82001961,22.4,22.358,21.31506292]
[1673882062100,21.82001961,22.4,22.36,4.18268]
[1673882062416,38.84104369,22.476,22.363,4.74189119]
[1673882062603,36.2391752,22.426,22.401,26.70598572]
[1673882062817,36.2391752,22.426,22.403,5.02874778]
[1673882063145,0.61253429,22.425,22.405,7.74312105]
[1673882063348,0.62170949,22.426,22.406,21.17409]
[1673882063666,0.62170949,22.426,22.407,11.26227866]
[1673882063876,20.0,22.488,22.426,0.62]
[1673882064076,0.57227826,22.467,22.427,4.17018]
[1673882064291,0.57227826,22.467,22.428,22.33015622]
[1673882064509,0.57227826,22.467,22.429,4.16981]
[1673882064839,0.57227826,22.467,22.43,77.4198919]
[1673882065060,0.57227826,22.467,22.432,7.60666109]
[1673882065359,0.57227826,22.467,22.434,6.50953109]
[1673882065555,0.57227826,22.467,22.435,41.16869]
[1673882065762,0.00227826,22.467,22.437,5.20140731]
[1673882065967,0.00227826,22.467,22.436,24.16851]
[1673882065968,0.00227826,22.467,22.439,4.25055764]
[1673882066181,0.00227826,22.467,22.44,4.16776]
[1673882066502,0.00227826,22.467,22.441,24.93968441]
[1673882066717,0.00227826,22.467,22.443,6.21534827]
[1673882067042,0.00227826,22.467,22.445,4.73205422]
[1673882067250,57.41253,22.527,22.447,20.0]
[1673882067453,33.33,22.523,22.449,10.26530131]
[1673882067657,33.32,22.526,22.451,4.16572]
[1673882067869,33.3,22.54,22.453,20.0]
[1673882068072,0.00597035,22.513,22.455,4.16498]
[1673882068284,0.00597035,22.513,22.455,24.16498]
[1673882068492,0.00597035,22.513,22.456,24.40992256]
[1673882068716,0.00597035,22.513,22.458,10.24690681]
[1673882068914,0.00597035,22.513,22.461,7.29786113]
[1673882069132,0.00597035,22.513,22.463,8.46636341]
[1673882069455,0.00597035,22.513,22.465,11.84000026]
[1673882069672,0.00597035,22.513,22.467,10.05871155]
[1673882069857,0.00597035,22.513,22.47,5.26737962]
[1673882070093,0.00597035,22.513,22.472,9.87920506]
[1673882070306,0.00597035,22.513,22.471,37.0]
[1673882070307,0.00597035,22.513,22.474,8.9787055]
[1673882070530,0.00597035,22.513,22.475,4.16127]
[1673882071254,54.80196354,22.512,22.475,4.16127]
[1673882071687,93.12453701,22.511,22.475,4.16127]
[1673882071900,20.0,22.51,22.475,4.16127]
[1673882072112,74.81196354,22.51,22.475,0.00127]
[1673882072426,7.29296553,22.508,22.449,4.16609]
[1673882072637,20.0,22.507,22.449,4.16609]
[1673882072839,20.0,22.505,22.449,4.16609]
[1673882073052,27.01204758,22.504,22.449,4.16609]
[1673882073270,29.66233478,22.503,22.449,4.16609]
[1673882073474,21.09253,22.502,22.41,4.73836285]
[1673882073680,4.25283103,22.5,22.412,4.17297]
[1673882073889,41.09253,22.499,22.412,4.17297]
[1673882074092,4.09253,22.497,22.412,4.17297]
[1673882074418,5.73260743,22.496,22.412,4.17297]
[1673882074737,20.0,22.493,22.412,4.17297]
[1673882074952,21.09253,22.492,22.412,4.17297]
[1673882075143,4.09253,22.491,22.412,4.17297]
[1673882075472,130.20116667,22.491,22.412,4.17297]
[1673882075662,4.16177557,22.489,22.412,4.17297]
[1673882075872,9.73164021,22.487,22.369,5.0187628]
[1673882076101,4.09253,22.485,22.371,4.18062]
[1673882076606,4.57948661,22.482,22.371,4.18062]
[1673882076815,1325.3218162,22.484,22.371,4.18062]
[1673882076816,6.13855107,22.479,22.371,4.18062]
[1673882077048,4.09253,22.471,22.344,6.93349038]
[1673882077249,6.6295999,22.469,22.345,4.18548]
[1673882077464,4.09253,22.457,22.344,6.93349038]
[1673882077674,17.0,22.417,22.335,17.63044072]
[1673882077883,10.35870044,22.415,22.337,30.60225071]
[1673882078079,8.09521373,22.413,22.336,23.15977405]
[1673882078291,6.23318718,22.411,22.272,95.4835097]
[1673882078516,20.0,22.41,22.338,45.26259273]
[1673882078829,7.60027712,22.407,22.335,28.31644072]
[1673882079163,41.00921233,22.406,22.344,7.78468205]
[1673882079341,4.09253,22.404,22.343,52.4385772]
[1673882079552,4.09253,22.404,22.345,52.4385772]
[1673882079765,33.51,22.403,22.346,20.0]
[1673882079986,4.09253,22.402,22.346,67.17840426]
[1673882080182,4.09253,22.402,22.348,5.90233352]
[1673882080392,4.09253,22.402,22.349,4.18473]
[1673882080623,4.5366184,22.449,22.35,37.0]
[1673882080818,4.09253,22.447,22.352,4.18417]
[1673882081147,4.09253,22.446,22.353,21.24868789]
[1673882081367,33.4,22.476,22.354,129.1]
[1673882081561,33.38,22.488,22.356,6.83244305]
[1673882081757,20.0,22.466,22.367,4.18137]
[1673882081970,20.0,22.466,22.369,129.1]
[1673882082285,5.06843974,22.464,22.371,4.18062]
[1673882082503,4.09253,22.463,22.371,4.18062]
[1673882082828,7.46552634,22.461,22.371,4.18062]
[1673882083018,4.09253,22.459,22.371,4.18062]
[1673882083230,6.78023628,22.458,22.358,6.68342584]
[1673882083545,11.73957973,22.456,22.363,42.40023596]
[1673882083759,4.09253,22.454,22.365,20.0]
[1673882083969,20.0,22.498,22.367,4.18137]
[1673882083970,53.36,22.498,22.367,4.18137]
[1673882084184,53.36,22.498,22.367,153.28137]
[1673882084185,33.38,22.488,22.367,153.28137]
[1673882084497,4.09253,22.487,22.368,48.20338015]
[1673882084824,5.46514143,22.484,22.37,4.18081]
[1673882085153,6.00386954,22.481,22.37,4.18081]
[1673882085370,4.09253,22.47,22.352,4.28077516]
[1673882085553,4.09253,22.47,22.353,4.18399]
[1673882085760,17.0,22.422,22.353,4.18399]
[1673882086099,4.09253,22.42,22.343,19.96470078]
[1673882086297,6.13654758,22.418,22.354,4.1838]
[1673882086510,37.0,22.417,22.354,4.1838]
[1673882086707,7.84845585,22.416,22.354,4.1838]
[1673882086920,17.0,22.415,22.354,4.1838]
[1673882087134,5.7533366,22.414,22.354,4.1838]
[1673882087366,129.1,22.412,22.31,7.77143215]
[1673882087542,5.56993602,22.409,22.343,4.18586]
[1673882087758,129.1,22.407,22.293,7.88380987]
[1673882087961,24.09253,22.408,22.265,75.27159226]
[1673882087962,129.1,22.405,22.265,75.27159226]
[1673882088191,4.09253,22.403,22.273,75.38848434]
[1673882088507,4.21476813,22.402,22.342,31.5671669]
[1673882088718,4.09253,22.4,22.335,31.01873513]
[1673882088908,6.30468063,22.399,22.293,4.68612597]
[1673882089119,4.09253,22.397,22.307,43.68172694]
[1673882089335,4.09253,22.397,22.294,4.19506]
[1673882089557,7.76157279,22.395,22.343,10.0]
[1673882089756,4.09253,22.393,22.343,10.0]
[1673882089972,10.76437872,22.393,22.343,10.0]
[1673882090185,5.69711332,22.391,22.295,4.42466635]
[1673882090380,4.09253,22.389,22.296,4.19468]
[1673882090591,5.95817169,22.388,22.296,4.19468]
[1673882090817,7.5326124,22.386,22.296,4.19468]
[1673882091021,4.09253,22.385,22.296,4.19468]
[1673882091239,129.1,22.384,22.296,4.19468]